bitfinex-derivatives/quotes_SOLF0:USTF0_20250705
["timestamp","ask_amount","ask_price","bid_price","bid_amount"]
[1751674614162,6.7529,148.05,148.02,6.754]
[1751674615269,6.7529,148.05,148.03,6.7537]
[1751674615561,6.7525,148.06,147.98,46.54]
[1751674615761,46.52,148.07,147.98,46.54]
[1751674615762,46.52,148.07,148.05,6.7527]
[1751674616367,6.7516,148.08,148.05,6.7527]
[1751674617966,6.7511,148.09,148.06,6.7523]
[1751674618169,2.345,148.1,147.99,4.7708]
[1751674618561,9.0955,148.1,148.06,6.7519]
[1751674619673,9.0955,148.1,148.07,6.7518]
[1751674624774,6.7511,148.09,148.06,6.7523]
[1751674626076,6.7515,148.08,148.05,6.7526]
[1751674627074,6.7511,148.09,148.06,6.7522]
[1751674631180,6.7514,148.08,148.05,6.7526]
[1751674631679,2.345,148.1,148.03,46.52]
[1751674631878,6.7518,148.08,148.04,6.753]
[1751674632376,6.7518,148.08,148.05,6.7525]
[1751674643783,6.752,148.07,148.04,6.753]
[1751674645985,6.7524,148.06,148.04,6.753]
[1751674650984,6.7524,148.06,148.03,53.2735]
[1751674651590,6.7524,148.06,148.03,6.7535]
[1751674655184,6.30634235,148.09,148.02,6.754]
[1751674655393,25.48710369,148.08,148.02,6.754]
[1751674655584,12.37710847,148.07,148.02,6.754]
[1751674655783,6.7528,148.05,148.02,6.754]
[1751674658190,5.61054035,148.04,148.02,6.754]
[1751674658391,6.7528,148.05,148.02,6.754]
[1751674658787,5.61077004,148.04,148.01,6.7544]
[1751674658993,5.61077004,148.03,147.99,46.48]
[1751674659194,52.78634235,148.07,148.03,6.7535]
[1751674659195,13.52936654,148.06,148.03,6.7535]
[1751674659396,5.60971657,148.05,148.03,6.7535]
[1751674659596,6.7526,148.06,148.03,6.7535]
[1751674659897,5.60971657,148.05,148.03,6.7535]
[1751674660085,6.7526,148.06,148.03,6.7535]
[1751674660291,5.60971657,148.05,148.03,6.7535]
[1751674660595,6.7526,148.06,148.03,6.7535]
[1751674660794,5.60983462,148.05,148.03,6.7535]
[1751674660995,6.7526,148.06,148.03,6.7535]
[1751674661189,5.71365546,148.05,148.03,6.7535]
[1751674661389,5.71365546,148.04,148.03,6.7535]
[1751674662096,5.71365546,148.04,148.02,6.754]
[1751674662296,6.7528,148.05,148.02,6.754]
[1751674662596,5.71262774,148.04,148.02,6.754]
[1751674662800,6.7528,148.05,148.02,6.754]
[1751674662996,5.71262774,148.04,148.02,6.754]
[1751674663199,6.7528,148.05,147.99,46.48]
[1751674663200,6.7528,148.05,148.03,6.7537]
[1751674663394,5.71213491,148.04,148.03,6.7537]
[1751674663595,5.71213491,148.04,148.02,6.7539]
[1751674663797,6.7528,148.05,148.02,6.7539]
[1751674663997,5.71213491,148.04,148.02,6.7539]
[1751674664198,5.71226353,148.03,148.02,6.7539]
[1751674665599,5.71226353,148.03,148.01,6.7544]
[1751674665801,6.7533,148.04,148.01,6.7544]
[1751674665996,5.71096416,148.03,148.01,6.7544]
[1751674666197,5.71117091,148.02,148.0,6.7549]
[1751674666398,6.7537,148.03,148.0,6.7549]
[1751674666598,5.7101172,148.02,148.0,6.7549]
[1751674666799,6.7537,148.03,148.0,6.7549]
[1751674666990,5.7101172,148.02,148.0,6.7549]
[1751674667297,6.7537,148.03,148.0,6.7549]
[1751674671198,6.7537,148.03,147.96,583.26]
[1751674671499,2.3057,148.05,147.96,583.26]
[1751674671697,2.3057,148.05,147.97,2.3368]
[1751674672502,9.0586,148.05,148.02,6.7539]
[1751674675808,9.0586,148.05,148.03,6.7536]
[1751674677006,2.3057,148.05,148.03,6.7536]
[1751674677796,2.2919,148.06,148.04,6.7529]
[1751674678003,5.70346108,148.05,148.04,6.7529]
[1751674678408,5.70346108,148.05,148.03,6.7534]
[1751674678608,6.7524,148.06,148.03,6.7534]
[1751674678909,5.70372905,148.05,148.03,6.7534]
[1751674679109,6.7524,148.06,148.03,6.7534]
[1751674679407,5.71450332,148.05,148.03,6.7534]
[1751674679610,6.7524,148.06,148.03,6.7534]
[1751674679809,5.71478692,148.05,148.03,6.7534]
[1751674680109,6.7524,148.06,148.03,6.7534]
[1751674680298,5.71478692,148.05,148.03,6.7534]
[1751674680503,6.7524,148.06,148.03,6.7534]
[1751674680699,5.71488252,148.05,148.03,6.7534]
[1751674680901,6.7524,148.06,148.03,6.7534]
[1751674681105,5.71488252,148.05,148.03,6.7534]
[1751674681302,6.7524,148.06,148.03,6.7534]
[1751674681513,5.714998,148.05,148.03,6.7534]
[1751674681713,6.7524,148.06,148.03,6.7534]
[1751674681914,5.7152036,148.05,148.03,6.7534]
[1751674682113,6.7524,148.06,148.04,6.7532]
[1751674682314,6.7518,148.08,147.99,46.44]
[1751674682511,5.72327854,148.07,147.99,46.44]
[1751674682711,5.72327854,148.06,147.99,46.44]
[1751674682913,6.7518,148.08,147.99,46.44]
[1751674683117,5.72327854,148.07,147.99,46.44]
[1751674683317,5.72327854,148.06,147.99,46.44]
[1751674683517,6.7518,148.08,148.04,6.7529]
[1751674683816,5.72345086,148.07,148.04,6.7529]
[1751674684018,5.72345086,148.06,148.04,6.7529]
[1751674684218,6.7518,148.08,148.04,6.7529]
[1751674684419,5.73440017,148.07,148.04,6.7529]
[1751674684617,5.73440017,148.06,148.04,6.7529]
[1751674684817,6.7518,148.08,148.04,6.7529]
[1751674685116,5.73440017,148.07,148.04,6.7529]
[1751674685416,5.73440017,148.06,148.04,6.7529]
[1751674685616,6.7518,148.08,148.04,6.7529]
[1751674685916,5.73457715,148.07,148.04,6.7529]
[1751674686116,5.73457715,148.06,148.04,6.7529]
[1751674686316,6.7518,148.08,148.04,6.7529]
[1751674686517,5.73466329,148.07,148.04,6.7529]
[1751674686720,5.73466329,148.06,148.04,6.7529]
[1751674686920,6.7518,148.08,148.04,6.7529]
[1751674687220,5.73466329,148.07,148.04,6.7529]
[1751674687517,5.73466329,148.06,148.04,6.7529]
[1751674687717,6.7518,148.08,148.04,6.7529]
[1751674687919,5.73462148,148.07,148.04,6.7529]
[1751674688218,6.7518,148.08,148.04,6.7529]
[1751674688420,5.73438372,148.07,148.04,6.7529]
[1751674688620,6.7518,148.07,148.04,6.7529]
[1751674689523,6.7516,148.08,148.05,6.7527]
[1751674689824,2.3981,148.09,148.05,6.7527]
[1751674690014,5.7340146,148.08,148.05,6.7527]
[1751674690212,9.1493,148.09,148.05,6.7527]
[1751674690411,5.73346391,148.08,148.05,6.7527]
[1751674690612,6.75,148.11,148.04,46.44]
[1751674690824,5.73246009,148.1,148.04,46.44]
[1751674691024,6.75,148.11,148.04,46.44]
[1751674691214,5.73245625,148.1,148.04,46.44]
[1751674691414,6.7498,148.12,148.08,6.7514]
[1751674691622,12.52768898,148.11,148.08,6.7514]
[1751674691922,5.73038838,148.1,148.08,6.7514]
[1751674692122,6.7498,148.12,148.08,6.7514]
[1751674692316,10.29436872,148.11,148.09,6.7508]
[1751674692523,6.7493,148.13,148.09,6.7508]
[1751674692722,12.52368013,148.12,148.04,46.44]
[1751674693024,48.6365,148.14,148.05,2.261]
[1751674693227,5.72768747,148.13,148.05,2.261]
[1751674693426,48.6365,148.14,148.05,2.261]
[1751674693626,5.72485885,148.13,148.05,2.261]
[1751674693826,48.6365,148.14,148.05,2.261]
[1751674694925,5.74884784,148.13,148.05,2.261]
[1751674695125,2.1965,148.14,148.05,2.261]
[1751674695728,8.9453,148.14,148.1,6.7502]
[1751674696926,6.7488,148.14,148.1,6.7502]
[1751674697332,6.7483,148.15,148.11,6.7499]
[1751674697532,5.74114972,148.14,148.11,6.7499]
[1751674697833,119.5070689,148.16,148.09,46.42]
[1751674698131,5.74096177,148.15,148.09,46.42]
[1751674698330,126.2549689,148.16,148.09,46.42]
[1751674698631,126.2549689,148.16,148.12,6.7494]
[1751674698828,6.7479,148.16,148.12,6.7494]
[1751674701034,6.7482,148.15,148.11,6.75]
[1751674706738,6.7482,148.15,148.12,6.7495]
[1751674708739,6.7479,148.16,148.12,6.7495]
[1751674710542,6.7483,148.15,148.12,6.7495]
[1751674710741,48.7598,148.18,148.11,6.7499]
[1751674710941,5.73439056,148.17,148.11,6.7499]
[1751674711146,6.7486,148.15,148.11,6.7499]
[1751674715845,6.7489,148.14,148.11,6.7499]
[1751674716740,55.06614235,148.18,148.05,48.641]
[1751674716945,2.3174,148.13,148.05,48.641]
[1751674717244,2.3174,148.13,148.07,6.7517]
[1751674717442,10.25759829,148.12,148.07,6.7517]
[1751674717642,4.505,148.12,148.06,6.7521]
[1751674717842,4.505,148.12,148.05,46.38]
[1751674718045,5.75298208,148.11,148.05,46.38]
[1751674718240,6.7513,148.09,148.05,53.1325]
[1751674718841,6.7513,148.09,148.06,6.7523]
[1751674719041,4.505,148.12,148.05,46.38]
[1751674719443,4.505,148.12,148.08,6.7509]
[1751674719748,11.2548,148.12,148.08,6.7509]
[1751674720047,11.2548,148.12,148.09,6.7509]
[1751674721052,55.4467,148.13,148.1,6.7504]
[1751674723849,55.4467,148.13,148.09,6.7508]
[1751674728258,5.73478189,148.12,148.09,6.7508]
[1751674728454,55.4467,148.13,148.05,46.38]
[1751674728651,5.73478281,148.12,148.05,46.38]
[1751674728857,55.4467,148.13,148.05,46.38]
[1751674728858,55.4467,148.13,148.09,6.7506]
[1751674729359,6.7496,148.12,148.09,6.7506]
[1751674729858,2.3174,148.13,148.09,6.7506]
[1751674730054,9.0667,148.13,148.09,6.7506]
[1751674730555,2.3174,148.13,148.1,6.7504]
[1751674730864,11.40376443,148.14,148.05,46.38]
[1751674731056,6.7488,148.14,148.05,46.38]
[1751674731557,6.7488,148.14,148.1,6.7502]
[1751674733248,5.75850206,148.13,148.1,6.7502]
[1751674733453,6.7488,148.14,148.11,6.7499]
[1751674733752,5.75850206,148.13,148.11,6.7499]
[1751674733952,6.7488,148.14,148.11,6.7499]
[1751674734154,5.75844118,148.13,148.11,6.7499]
[1751674734450,6.7488,148.14,148.11,6.7499]
[1751674734647,5.76046746,148.13,148.11,6.7499]
[1751674734859,6.7488,148.14,148.11,6.7499]
[1751674735059,5.76046746,148.13,148.11,6.7499]
[1751674735261,6.7488,148.14,148.1,6.7503]
[1751674735458,5.76207448,148.13,148.1,6.7503]
[1751674735657,6.7488,148.14,148.1,6.7503]
[1751674735857,12.51117448,148.13,148.1,6.7503]
[1751674736057,6.7491,148.13,148.1,6.7503]
[1751674736455,6.7489,148.14,148.1,6.7503]
[1751674736662,5.76248851,148.13,148.1,6.7503]
[1751674736860,6.7489,148.14,148.1,6.7503]
[1751674737157,5.76248851,148.13,148.1,6.7503]
[1751674737356,6.7489,148.14,148.1,6.7503]
[1751674737556,5.76283825,148.13,148.1,6.7503]
[1751674737756,6.7489,148.14,148.1,6.7503]
[1751674737953,5.76283825,148.13,148.1,6.7503]
[1751674738151,6.7489,148.14,148.1,6.7503]
[1751674738455,5.76290196,148.13,148.1,6.7503]
[1751674738648,6.7489,148.14,148.1,6.7503]
[1751674738849,5.7629019,148.13,148.1,6.7503]
[1751674739151,6.7489,148.14,148.1,6.7503]
[1751674739354,5.76287695,148.13,148.1,6.7503]
[1751674739552,6.7489,148.14,148.1,6.7503]
[1751674739756,5.76287695,148.13,148.11,6.7499]
[1751674740057,6.7489,148.14,148.11,6.7499]
[1751674740358,5.76287695,148.13,148.11,6.7499]
[1751674740550,6.7489,148.14,148.11,6.7499]
[1751674740751,5.76268252,148.13,148.11,6.7499]
[1751674740952,6.7489,148.14,148.11,6.7499]
[1751674741155,6.7477,148.17,148.1,46.34]
[1751674741355,5.7612941,148.16,148.1,46.34]
[1751674741562,5.7612941,148.15,148.1,46.34]
[1751674741762,6.7477,148.17,148.13,6.7487]
[1751674741965,5.76129151,148.16,148.13,6.7487]
[1751674742165,5.76129151,148.15,148.13,6.7487]
[1751674742359,6.7477,148.17,148.13,6.7487]
[1751674742665,5.7700549,148.16,148.13,6.7487]
[1751674742964,5.7700549,148.16,148.1,46.34]
[1751674742965,5.7700549,148.15,148.12,6.7494]
[1751674743265,6.7478,148.16,148.12,6.7494]
[1751674743460,5.76959351,148.15,148.12,6.7494]
[1751674743760,6.7478,148.16,148.12,6.7494]
[1751674743963,5.76959259,148.15,148.13,6.7491]
[1751674744164,6.7478,148.16,148.13,6.7491]
[1751674744365,5.76918973,148.15,148.13,6.7491]
[1751674744566,6.7478,148.16,148.13,6.7491]
[1751674744761,5.76918973,148.15,148.13,6.7491]
[1751674744961,6.7478,148.16,148.13,6.7491]
[1751674745156,5.77456877,148.15,148.13,6.7491]
[1751674745362,6.7478,148.16,148.13,6.7491]
[1751674745562,5.77418074,148.15,148.13,6.7491]
[1751674745765,6.7478,148.16,148.13,6.7491]
[1751674745964,5.77418074,148.15,148.13,6.7491]
[1751674746266,6.7478,148.16,148.13,6.7491]
[1751674746462,5.77380716,148.15,148.13,6.7491]
[1751674746766,6.7474,148.17,148.14,6.7485]
[1751674746968,5.77344195,148.16,148.14,6.7485]
[1751674747269,6.747,148.18,148.15,6.748]
[1751674747467,5.7721753,148.17,148.15,6.748]
[1751674747666,6.747,148.18,148.15,6.748]
[1751674747867,5.7721753,148.17,148.15,6.748]
[1751674748166,9.121,148.19,148.15,6.748]
[1751674748462,5.77101637,148.18,148.15,6.748]
[1751674748768,6.7469,148.18,148.14,6.7485]
[1751674749168,2.3744,148.19,148.1,46.34]
[1751674749362,6.7476,148.17,148.13,6.7488]
[1751674749963,5.77058785,148.16,148.13,6.7488]
[1751674750164,6.7476,148.17,148.14,6.7486]
[1751674756971,6.747,148.18,148.14,6.7486]
[1751674760476,6.747,148.18,148.1,46.34]
[1751674762073,6.747,148.18,148.14,6.7483]
[1751674770284,5.79101171,148.17,148.14,6.7483]
[1751674770479,6.747,148.18,148.14,6.7483]
[1751674770676,5.79101171,148.17,148.14,6.7483]
[1751674770977,6.747,148.18,148.14,6.7483]
[1751674771180,5.79101171,148.17,148.14,6.7483]
[1751674771382,6.747,148.18,148.14,6.7483]
[1751674771582,5.7920083,148.17,148.14,6.7483]
[1751674771776,6.747,148.18,148.14,6.7483]
[1751674771974,5.7920083,148.17,148.14,6.7483]
[1751674772183,6.747,148.18,148.14,6.7483]
[1751674772383,5.78796298,148.17,148.14,6.7483]
[1751674772587,6.747,148.18,148.14,6.7483]
[1751674772786,5.78796298,148.17,148.14,6.7483]
[1751674772986,6.747,148.18,148.14,6.7483]
[1751674773175,5.78796298,148.17,148.14,6.7483]
[1751674773379,6.747,148.18,148.14,6.7483]
[1751674773580,2.3744,148.19,148.14,6.7483]
[1751674773581,12.53692066,148.17,148.14,6.7483]
[1751674773781,6.7476,148.17,148.14,6.7483]
[1751674774083,5.78932066,148.16,148.14,6.7483]
[1751674774380,6.7476,148.17,148.14,6.7483]
[1751674774585,5.79062121,148.16,148.14,6.7483]
[1751674774781,6.7476,148.17,148.14,6.7483]
[1751674774982,5.79062121,148.16,148.14,6.7483]
[1751674775183,6.747,148.18,148.14,6.7483]
[1751674775377,5.79177198,148.17,148.15,6.7482]
[1751674775584,6.747,148.18,148.15,6.7482]
[1751674775785,5.7916435,148.17,148.15,6.7482]
[1751674775985,6.747,148.18,148.15,6.7482]
[1751674776292,5.7916435,148.17,148.15,6.7482]
[1751674776490,6.747,148.18,148.15,6.7482]
[1751674776793,5.79222378,148.17,148.15,6.7482]
[1751674776981,6.747,148.18,148.15,6.7482]
[1751674777184,5.79222378,148.17,148.15,6.7482]
[1751674777383,6.747,148.18,148.15,6.7482]
[1751674777584,5.79289403,148.17,148.15,6.7482]
[1751674777781,6.747,148.18,148.15,6.7482]
[1751674778084,5.79289403,148.17,148.15,6.7482]
[1751674778285,6.747,148.18,148.15,6.7482]
[1751674778486,5.79366579,148.17,148.15,6.7482]
[1751674778690,6.747,148.18,148.15,6.7482]
[1751674778890,5.79366579,148.17,148.15,6.7482]
[1751674779090,6.747,148.18,148.15,6.7482]
[1751674779292,5.79366579,148.17,148.15,6.7482]
[1751674779488,6.747,148.18,148.15,6.7482]
[1751674779691,5.79450204,148.17,148.15,6.7482]
[1751674779886,6.747,148.18,148.15,6.7482]
[1751674780088,5.79450204,148.17,148.15,6.7482]
[1751674780384,5.79546748,148.16,148.15,6.7482]
[1751674786800,5.79546748,148.16,148.14,6.7484]
[1751674786999,6.747,148.18,148.14,6.7484]
[1751674787199,5.79676725,148.17,148.1,46.34]
[1751674787403,5.79676725,148.16,148.15,6.7478]
[1751674802105,5.79676725,148.16,148.14,6.7484]
[1751674802304,5.79676725,148.15,148.14,6.7484]
[1751674824934,5.79676725,148.15,148.13,53.029]
[1751674825135,5.812792,148.14,148.13,53.029]
[1751674825532,5.812792,148.14,148.13,46.28]
[1751674826935,5.812792,148.14,148.12,6.7494]
[1751674827234,5.812792,148.13,148.12,6.7494]
[1751674829943,9.119,148.16,148.12,6.7494]
[1751674830145,5.79331356,148.15,148.09,46.24]
[1751674830343,5.79331356,148.14,148.09,46.24]
[1751674830644,5.79331356,148.13,148.09,46.24]
[1751674830845,5.79331356,148.12,148.1,6.7501]
[1751674831044,8.9492,148.14,148.1,6.7501]
[1751674831246,5.79321482,148.13,148.1,6.7501]
[1751674831445,8.9492,148.14,148.11,6.75]
[1751674831648,5.79189482,148.13,148.11,6.75]
[1751674831844,8.9492,148.14,148.11,6.75]
[1751674832151,5.7864383,148.13,148.11,6.75]
[1751674832446,8.9492,148.14,148.11,6.75]
[1751674832748,5.78537433,148.13,148.11,6.75]
[1751674832949,8.9492,148.14,148.11,6.75]
[1751674833248,5.78537433,148.13,148.11,6.75]
[1751674833449,8.9492,148.14,148.11,6.75]
[1751674833654,5.78449016,148.13,148.11,6.75]
[1751674833949,5.78449016,148.13,148.09,46.24]
[1751674833950,2.2003,148.14,148.12,6.7495]
[1751674834247,5.78449016,148.13,148.12,6.7495]
[1751674836651,5.78449016,148.13,148.11,6.7499]
[1751674836849,2.2003,148.14,148.11,6.7499]
[1751674837152,5.76642484,148.13,148.11,6.7499]
[1751674837350,2.2003,148.14,148.11,6.7499]
[1751674837549,5.7659756,148.13,148.11,6.7499]
[1751674837750,2.2003,148.14,148.11,6.7499]
[1751674837952,5.7659756,148.13,148.11,6.7499]
[1751674838151,2.2003,148.14,148.09,46.24]
[1751674839652,2.2003,148.14,148.13,6.7491]
[1751674840647,2.3711,148.16,148.14,6.7483]
[1751674842051,2.3711,148.16,148.15,6.7482]
[1751674842254,5.76522041,148.16,148.15,6.7482]
[1751674844457,2.3004,148.19,148.17,6.7468]
[1751674844657,5.76456615,148.18,148.17,6.7468]
[1751674850662,2.3004,148.19,148.17,6.7468]
[1751674852965,2.3004,148.19,148.18,6.7468]
[1751674854268,4.33492671,148.2,148.19,6.7464]
[1751674854568,10.1230865,148.2,148.19,6.7464]
[1751674855164,4.33492671,148.2,148.19,6.7464]
[1751674860678,4.33492671,148.2,148.14,46.2]
[1751674860679,4.33492671,148.2,148.18,6.7467]
[1751674861077,4.33492671,148.2,148.14,46.2]
[1751674863283,4.33492671,148.2,148.18,6.7466]
[1751674864077,4.33492671,148.2,148.19,6.7464]
[1751674882586,4.33492671,148.2,148.19,52.8864]
[1751674891690,2.671e-05,148.2,148.19,52.8864]
[1751674914516,2.671e-05,148.2,148.19,247.2464]
[1751674945935,2.2581,148.23,148.2,0.49997329]
[1751674946141,2.2581,148.23,148.21,194.22]
[1751674946638,2.2581,148.23,148.22,6.745]
[1751674951740,2.3868,148.27,148.21,194.22]
[1751674952043,5.85529577,148.26,148.21,194.22]
[1751674952340,5.85529577,148.25,148.24,6.7441]
[1751674952542,5.85529577,148.25,148.24,200.9241]
[1751674965657,5.85529577,148.25,148.24,203.25167764]
[1751674968353,2.4137,148.27,148.25,6.7432]
[1751674968553,2.4137,148.27,148.26,2.32757764]
[1751674969457,16.16485961,148.27,148.23,2.32757764]
[1751674969657,16.16485961,148.27,148.22,242.44757764]
[1751674969658,7.01115961,148.26,148.22,242.44757764]
[1751674969860,6.7435,148.26,148.23,2.32757764]
[1751674970052,2.2452,148.25,148.23,2.32757764]
[1751674970251,6.745,148.23,148.2,2.32757764]
[1751674970552,8.63362357,148.21,148.17,203.19467764]
[1751674970752,4.68395258,148.2,148.17,203.19467764]
[1751674970954,6.30604593,148.2,148.17,203.19467764]
[1751674971148,6.30604593,148.2,148.17,9.07467764]
[1751674971353,2.32757764,148.2,148.17,9.07467764]
[1751674971551,8.63362357,148.21,148.17,9.07467764]
[1751674971755,8.63362357,148.21,148.18,2.32757764]
[1751674972056,8.63362357,148.21,148.18,9.07437764]
[1751674972460,6.30604593,148.21,148.18,9.07437764]
[1751674972857,8.63362357,148.21,148.18,9.07437764]
[1751674973161,8.63362357,148.21,148.19,6.7463]
[1751674973366,2.32757764,148.21,148.19,6.7463]
[1751674975558,10.82142357,148.22,148.19,6.7463]
[1751674975871,19.87512357,148.22,148.18,9.07427764]
[1751674976368,13.56907764,148.22,148.18,9.07427764]
[1751674977965,2.32757764,148.21,148.17,9.07477764]
[1751674978466,6.7469,148.18,148.15,6.7481]
[1751674978767,9.07447764,148.18,148.14,48.32757764]
[1751674978961,2.2776,148.17,148.14,48.32757764]
[1751674979161,4.5326,148.17,148.14,55.07597764]
[1751674979558,2.2835,148.2,148.16,2.32757764]
[1751674979864,2.2835,148.2,148.18,2.32757764]
[1751674980065,2.2835,148.2,148.19,2.32757764]
[1751674980367,8.23774705,148.2,148.19,2.32757764]
[1751674982366,2.2835,148.2,148.19,2.32757764]
[1751674982565,11.2777,148.22,148.19,2.32757764]
[1751674982755,5.95600809,148.21,148.19,2.32757764]
[1751674982958,11.2777,148.22,148.19,2.32757764]
[1751674983268,5.95600474,148.21,148.19,9.07397764]
[1751674983469,4.5326,148.22,148.2,2.32757764]
[1751674983770,5.95506709,148.21,148.2,2.32757764]
[1751674984069,5.95506709,148.21,148.2,9.07347764]
[1751674984271,4.5326,148.22,148.2,9.07347764]
[1751674984463,4.5326,148.22,148.21,2.32757764]
[1751674984658,10.48680225,148.22,148.21,2.32757764]
[1751674985268,8.23180225,148.22,148.21,9.07307764]
[1751674987071,8.23180225,148.22,148.21,2.32757764]
[1751674987370,2.2776,148.22,148.21,2.32757764]
[1751674988565,2.2776,148.22,148.14,46.0]
[1751674988773,2.32757764,148.21,148.17,2.32757764]
[1751674988967,5.91398282,148.2,148.17,2.32757764]
[1751674989270,2.2359,148.21,148.17,2.32757764]
[1751674989470,5.91328323,148.2,148.17,2.32757764]
[1751674989670,2.2359,148.21,148.17,2.32757764]
[1751674989872,5.91328323,148.2,148.17,2.32757764]
[1751674990073,2.2359,148.21,148.17,2.32757764]
[1751674990373,12.65948323,148.2,148.18,2.32757764]
[1751674990573,6.7462,148.2,148.17,2.32757764]
[1751674991074,6.7462,148.2,148.18,2.32757764]
[1751674991369,8.9815,148.21,148.18,2.32757764]
[1751674991573,5.92284133,148.2,148.18,2.32757764]
[1751674991770,8.9815,148.21,148.18,2.32757764]
[1751674991971,5.92284133,148.2,148.18,2.32757764]
[1751674992172,8.9815,148.21,148.18,2.32757764]
[1751674993976,5.92238929,148.2,148.18,2.32757764]
[1751674994177,8.9815,148.21,148.18,2.32757764]
[1751674994381,5.92227765,148.2,148.18,2.32757764]
[1751674994675,8.9815,148.21,148.18,2.32757764]
[1751674994869,5.92227765,148.2,148.18,2.32757764]
[1751674995173,8.9815,148.21,148.18,2.32757764]
[1751674995375,5.92211847,148.2,148.18,2.32757764]
[1751674995574,8.9815,148.21,148.18,2.32757764]
[1751674995773,5.92211847,148.2,148.18,2.32757764]
[1751674996075,6.7459,148.2,148.18,2.32757764]
[1751674997773,6.7459,148.2,148.18,9.07437764]
[1751674999578,6.7459,148.2,148.18,6.7468]
[1751674999765,6.7459,148.2,148.18,9.07437764]
[1751675002573,6.7459,148.2,148.17,6.7471]
[1751675002778,6.7459,148.2,148.18,2.32757764]
[1751675003374,6.7459,148.2,148.17,6.7471]
[1751675003677,6.7459,148.2,148.18,2.32757764]
[1751675003878,6.7459,148.2,148.18,9.07437764]
[1751675005383,8.9815,148.21,148.18,6.7468]
[1751675005680,5.92633981,148.2,148.18,9.07437764]
[1751675005881,8.9815,148.21,148.18,9.07437764]
[1751675006181,5.92633981,148.2,148.18,9.07437764]
[1751675006382,8.9815,148.21,148.18,9.07437764]
[1751675006577,5.9273918,148.2,148.18,9.07437764]
[1751675006782,8.9815,148.21,148.18,9.07437764]
[1751675007083,5.9273918,148.2,148.19,6.7464]
[1751675007278,5.9273918,148.2,148.14,46.0]
[1751675007479,6.7456,148.21,148.18,9.07417764]
[1751675007682,5.92858984,148.2,148.18,9.07417764]
[1751675007887,6.7456,148.21,148.18,9.07417764]
[1751675008182,5.92858984,148.2,148.18,9.07417764]
[1751675008384,5.93010269,148.19,148.18,9.07417764]
[1751675010486,5.93010269,148.19,148.18,2.32757764]
[1751675011886,5.93010269,148.19,148.17,6.7471]
[1751675012087,6.7459,148.2,148.18,2.32757764]
[1751675012286,5.9329651,148.19,148.18,2.32757764]
[1751675017397,5.9329651,148.19,148.18,9.07437764]
[1751675018093,5.9329651,148.19,148.18,6.7468]
[1751675018299,5.9329651,148.19,148.18,9.07437764]
[1751675029299,6.30604593,148.23,148.2,6.7459]
[1751675029597,5.95385906,148.22,148.2,9.07347764]
[1751675029793,5.95385906,148.21,148.2,9.07347764]
[1751675032407,8.56684593,148.25,148.2,9.07347764]
[1751675032408,6.30604593,148.25,148.22,6.7448]
[1751675032607,5.95084413,148.24,148.23,2.32757764]
[1751675033609,5.95084413,148.24,148.23,9.07207764]
[1751675035306,6.7428,148.27,148.23,9.07207764]
[1751675035501,5.96904601,148.26,148.24,2.32757764]
[1751675035705,5.96904601,148.25,148.24,2.32757764]
[1751675037409,5.96904601,148.25,148.24,9.07167764]
[1751675042513,128.49178972,148.29,148.24,2.32757764]
[1751675042710,5.95397011,148.28,148.25,2.32757764]
[1751675042913,5.95397011,148.27,148.25,9.07087764]
[1751675043223,5.95397011,148.26,148.2,2.4022]
[1751675043423,6.7424,148.28,148.23,6.7443]
[1751675043620,5.95226808,148.27,148.24,2.32757764]
[1751675043822,5.95226808,148.26,148.24,2.32757764]
[1751675044027,6.7424,148.28,148.24,2.32757764]
[1751675044224,5.91237522,148.27,148.24,2.32757764]
[1751675044525,5.91237522,148.26,148.24,2.32757764]
[1751675044725,9.06997764,148.28,148.24,2.32757764]
[1751675045025,5.91167379,148.27,148.24,2.32757764]